fUSD/lending_fUSD_20240103
["ID","MTS","AMOUNT","RATE_DAILY","PERIOD"]
[309976530,1704253834375,-534.46355212,0.00032876,2]
[309976531,1704253834384,-500.0,0.00032876,2]
[309976532,1704253834393,-500.0,0.00032876,2]
[309976533,1704253834402,-500.0,0.00032876,2]
[309976534,1704253834411,-498.33787658,0.00032876,2]
[309976535,1704253834421,-537.65631113,0.00032876,2]
[309976536,1704253834431,-600.38268632,0.00032876,2]
[309976537,1704253834442,-500.0,0.00032876,2]
[309976538,1704253834452,-533.29788453,0.00032876,2]
[309976539,1704253834464,-520.10824251,0.00032876,2]
[309976540,1704253834474,-549.32994766,0.00032876,2]
[309976541,1704253834483,-520.51072132,0.00032876,2]
[309976542,1704253834493,-500.0,0.00032876,2]
[309976543,1704253834502,-517.73833213,0.00032876,2]
[309976544,1704253834516,-455.45989,0.00032876,2]
[309976545,1704253834526,-500.0,0.00032876,2]
[309976546,1704253834537,-500.0,0.00032876,2]
[309976547,1704253834547,-533.32962446,0.00032876,2]
[309976548,1704253834558,-500.0,0.00032876,2]
[309976549,1704253834568,-500.0,0.00032876,2]
[309976550,1704253834578,-556.48652537,0.00032876,2]
[309976551,1704253834590,-519.72724869,0.00032876,2]
[309976552,1704253834600,-539.76197268,0.00032876,2]
[309976553,1704253834610,-509.43151671,0.00032876,2]
[309976554,1704253834620,-500.0,0.00032876,2]
[309976555,1704253834629,-511.15673552,0.00032876,2]
[309976556,1704253834639,-510.83423534,0.00032876,2]
[309976557,1704253834650,-513.94508256,0.00032876,2]
[309976558,1704253834660,-500.0,0.00032876,2]
[309976559,1704253834670,-613.21954579,0.00032876,2]
[309976560,1704253834681,-1102.19,0.00032876,2]
[309976561,1704253834690,-561.51141664,0.00032876,2]
[309976562,1704253834700,-603.95990547,0.00032876,2]
[309976563,1704253834709,-190.18397878,0.00032876,2]
[309976564,1704253834718,-500.0,0.00032876,2]
[309976565,1704253834727,-504.23427902,0.00032876,2]
[309976566,1704253834736,-500.0,0.00032876,2]
[309976567,1704253834745,-511.34634155,0.00032876,2]
[309976568,1704253834754,-500.0,0.00032876,2]
[309976569,1704253834764,-500.96909157,0.00032876,2]
[309976570,1704253834774,-507.32200139,0.00032876,2]
[309976571,1704253834783,-507.95699926,0.00032876,2]
[309976572,1704253834795,-507.94444049,0.00032876,2]
[309976573,1704253834804,-500.0,0.00032876,2]
[309976574,1704253834813,-500.0,0.00032876,2]
[309976575,1704253834822,-500.0,0.00032876,2]
[309976576,1704253834831,-500.0,0.00032876,2]
[309976577,1704253834841,-500.0,0.00032876,2]
[309976578,1704253834850,-554.22006175,0.00032876,2]
[309976579,1704253834859,-500.0,0.00032876,2]
[309976580,1704253834868,-284.53826051,0.00032876,2]
[309976581,1704253834878,-500.0,0.00032876,2]
[309976582,1704253834888,-268.25,0.00032877,15]
[309976583,1704253834897,-333.40103,0.00032898,2]
[309976584,1704253834906,-366.9435693,0.00032898,2]
[309976585,1704253834915,-177.27,0.00032898,2]
[309976586,1704253834924,-150.394595,0.000329,2]
[309976587,1704253834933,-196.44,0.000329,2]
[309976588,1704253834942,-439.01639081,0.00032971,4]
[309976589,1704253834952,-530.03,0.0003298,2]
[309976590,1704253834961,-384.94722943,0.0003298,2]
[309976591,1704253834971,-500.0,0.0003298,2]
[309976592,1704253834980,-415.37276215,0.0003298,2]
[309976593,1704253834989,-500.0,0.0003298,2]
[309976594,1704253834999,-633.14,0.0003298,2]
[309976595,1704253835009,-500.0,0.0003298,2]
[309976596,1704253835018,-615.3,0.0003298,2]
[309976597,1704253835028,-1664.45,0.0003298,2]
[309976598,1704253835038,-500.0,0.0003298,2]
[309976599,1704253835048,-500.0,0.0003298,2]
[309976600,1704253835057,-625.88574603,0.0003298,2]
[309976601,1704253835067,-1505.72,0.0003298,2]
[309976602,1704253835076,-500.0,0.0003298,2]
[309976603,1704253835086,-600.42483077,0.0003298,2]
[309976604,1704253835096,-500.0,0.0003298,2]
[309976605,1704253835105,-500.0,0.0003298,2]
[309976606,1704253835115,-500.0,0.0003298,2]
[309976607,1704253835125,-500.0,0.0003298,2]
[309976608,1704253835134,-500.0,0.0003298,2]
[309976609,1704253835144,-500.0,0.0003298,2]
[309976610,1704253835153,-593.93420977,0.0003298,2]
[309976611,1704253835163,-529.83,0.0003298,2]
[309976612,1704253835172,-507.16356568,0.00032981,2]
[309976613,1704253835182,-408.94760513,0.00032981,2]
[309976614,1704253835191,-571.92581431,0.00032981,2]
[309976615,1704253835199,-500.0,0.00032981,2]
[309976616,1704253835209,-513.67816731,0.00032981,2]
[309976617,1704253835218,-500.0,0.00032981,2]
[309976618,1704253835227,-242.54012004,0.00032981,2]
[309976619,1704253835236,-500.0,0.00032981,2]
[309976620,1704253835245,-540.48089669,0.00032981,2]
[309976621,1704253835255,-545.02,0.00032981,2]
[309976622,1704253835266,-181.71099381,0.00032981,2]
[309976623,1704253835275,-542.69297403,0.00032981,2]
[309976624,1704253835285,-500.0,0.00032981,2]
[309976625,1704253835294,-542.73292916,0.00032981,2]
[309976626,1704253835304,-500.0,0.00032981,2]
[309976627,1704253835313,-500.0,0.00032981,2]
[309976628,1704253835323,-531.31296875,0.00032981,2]
[309976629,1704253835333,-500.0,0.00032981,2]
[309976630,1704253835342,-576.38715587,0.00032981,2]
[309976631,1704253835351,-508.63327222,0.00032981,2]
[309976632,1704253835360,-531.18925869,0.00032981,2]
[309976633,1704253835370,-500.0,0.00032981,2]
[309976634,1704253835379,-500.0,0.00032981,2]
[309976635,1704253835388,-500.0,0.00032981,2]
[309976636,1704253835398,-572.54297481,0.00032981,2]
[309976637,1704253835407,-500.0,0.00032981,2]
[309976638,1704253835417,-517.04434467,0.00032981,2]
[309976639,1704253835426,-500.0,0.00032981,2]
[309976640,1704253835435,-549.81,0.00032981,2]
[309976641,1704253835444,-507.14727618,0.00032981,2]
[309976642,1704253835454,-503.381119,0.00032981,2]
[309976643,1704253835463,-500.0,0.00032981,2]
[309976644,1704253835472,-500.0,0.00032981,2]
[309976645,1704253835481,-279.2986795,0.00032981,2]
[309976646,1704253835491,-533.04015469,0.00032981,2]
[309976647,1704253835501,-532.98133398,0.00032981,2]
[309976648,1704253835512,-157.51222748,0.00032981,2]
[309976649,1704253835522,-573.75,0.00032981,2]
[309976650,1704253835531,-539.79497275,0.00032981,2]
[309976651,1704253835540,-500.0,0.00032981,2]
[309976652,1704253835550,-500.0,0.00032981,2]
[309976653,1704253835559,-500.0,0.00032981,2]
[309976654,1704253835569,-506.54940643,0.00032981,2]
[309976655,1704253835578,-500.0,0.00032981,2]
[309976656,1704253835587,-500.0,0.00032981,2]
[309976657,1704253835597,-500.0,0.00032981,2]
[309976658,1704253835606,-500.0,0.00032981,2]
[309976659,1704253835616,-514.70497107,0.00032981,2]
[309976660,1704253835626,-552.65519251,0.00032981,2]
[309976661,1704253835635,-500.0,0.00032981,2]
[309976662,1704253835645,-500.0,0.00032981,2]
[309976663,1704253835654,-500.0,0.00032981,2]
[309976664,1704253835663,-530.77726012,0.00032981,2]
[309976665,1704253835673,-557.81299204,0.00032981,2]
[309976666,1704253835682,-939.37,0.00032981,2]
[309976667,1704253835691,-500.0,0.00032981,2]
[309976668,1704253835701,-500.0,0.00032981,2]
[309976669,1704253835710,-509.37120098,0.00032981,2]
[309976670,1704253835720,-507.73666529,0.00032981,2]
[309976671,1704253835729,-500.0,0.00032981,2]
[309976672,1704253835739,-298.50472111,0.00032981,2]
[309976673,1704253835749,-1120.93014636,0.00032981,2]
[309976674,1704253835760,-532.294357,0.00032981,2]
[309976675,1704253835770,-569.54756233,0.00032981,2]
[309976676,1704253835779,-500.0,0.00032981,2]
[309976677,1704253835789,-1109.94,0.00032981,2]
[309976678,1704253835800,-500.0,0.00032981,2]
[309976679,1704253835809,-559.88167196,0.00032981,2]
[309976680,1704253835818,-500.0,0.00032981,2]
[309976681,1704253835827,-589.078039,0.00032981,2]
[309976682,1704253835836,-498.54777019,0.00032981,2]
[309976683,1704253835846,-500.0,0.00032981,2]
[309976684,1704253835856,-305.71392618,0.00032981,2]
[309976685,1704253835865,-500.0,0.00032981,2]
[309976686,1704253835875,-500.0,0.00032981,2]
[309976687,1704253835884,-527.1841114,0.00032981,2]
[309976688,1704253835894,-516.17021521,0.00032981,2]
[309976689,1704253835903,-523.39320461,0.00032981,2]
[309976690,1704253835913,-369.06628228,0.00032981,2]
[309976691,1704253835922,-527.93834587,0.00032981,2]
[309976692,1704253835931,-509.78504238,0.00032981,2]
[309976693,1704253835941,-522.64232728,0.00032981,2]
[309976694,1704253835950,-525.73771431,0.00032981,2]
[309976695,1704253835960,-506.7313886,0.00032981,2]
[309976696,1704253835969,-500.0,0.00032981,2]
[309976697,1704253835979,-529.8273727,0.00032981,2]
[309976698,1704253835989,-523.74001166,0.00032981,2]
[309976699,1704253835998,-312.66806873,0.00032981,2]
[309976700,1704253836009,-509.9006358,0.00032981,2]
[309976701,1704253836018,-502.66314728,0.00032981,2]
[309976702,1704253836028,-522.43978926,0.00032981,2]
[309976703,1704253836037,-512.27673173,0.00032981,2]
[309976704,1704253836046,-511.33139086,0.00032981,2]
[309976705,1704253836056,-500.0,0.00032981,2]
[309976706,1704253836065,-516.62870931,0.00032981,2]
[309976707,1704253836075,-532.60192786,0.00032981,2]
[309976708,1704253836085,-510.26300823,0.00032981,2]
[309976709,1704253836094,-577.85,0.00032981,2]
[309976710,1704253836104,-565.46896956,0.00032981,2]
[309976711,1704253836114,-518.53180522,0.00032981,2]
[309976712,1704253836123,-533.92942107,0.00032981,2]
[309976713,1704253836133,-533.99890536,0.00032981,2]
[309976714,1704253836142,-512.06651963,0.00032981,2]
[309976715,1704253836152,-549.91198039,0.00032981,2]
[309976716,1704253836161,-500.0,0.00032981,2]
[309976717,1704253836171,-530.49857191,0.00032981,2]
[309976718,1704253836180,-543.7911938,0.00032981,2]
[309976719,1704253836190,-507.53077945,0.00032981,2]
[309976720,1704253836199,-546.80566472,0.00032981,2]
[309976721,1704253836209,-500.0,0.00032981,2]
[309976722,1704253836218,-524.84145763,0.00032981,2]
[309976723,1704253836227,-329.93340826,0.00032981,2]
[309976724,1704253836237,-591.65633278,0.00032981,2]
[309976725,1704253836246,-382.91037372,0.00032981,2]
[309976726,1704253836255,-512.08791608,0.00032981,2]
[309976727,1704253836265,-599.01824798,0.00032981,2]
[309976728,1704253836274,-522.54261053,0.00032981,2]
[309976729,1704253836283,-564.33576387,0.00032981,2]
[309976730,1704253836292,-608.28303048,0.00032981,2]
[309976731,1704253836301,-515.9571941,0.00032981,2]
[309976732,1704253836311,-541.97253807,0.00032981,2]
[309976733,1704253836320,-150.89543735,0.00032981,2]
[309976734,1704253836330,-512.28740943,0.00032981,2]
[309976735,1704253836339,-537.00446152,0.00032981,2]
[309976736,1704253836348,-538.26562908,0.00032981,2]
[309976737,1704253836358,-525.65160857,0.00032981,2]
[309976738,1704253836367,-54005.0058,0.00032981,3]
[309976739,1704253836376,-333.40103,0.00032998,2]
[309976740,1704253836385,-213.24099873,0.00032999,6]
[309976741,1704253836394,-500.0,0.00033,2]
[309976742,1704253836403,-500.0,0.00033,2]
[309976743,1704253836413,-400.12,0.00033019,2]
[309976744,1704253836422,-400.12,0.00033019,2]
[309976745,1704253836431,-400.26,0.00033019,2]
[309976746,1704253836440,-300.0,0.00033041,2]
[309976747,1704253836450,-186.63,0.00033068,2]
[309976748,1704253836459,-333.40103,0.00033098,2]
[309976749,1704253836469,-588.0,0.00033099,2]
[309976750,1704253836478,-500.0,0.00033099,2]
[309976751,1704253836487,-500.0,0.00033099,2]
[309976752,1704253836497,-888.14,0.00033099,2]
[309976753,1704253836506,-439.01639081,0.00033188,5]
[309976754,1704253836517,-333.40103,0.00033198,2]
[309976755,1704253836526,-2000.0,0.00033205,2]
[309976756,1704253836536,-200.0,0.00033205,2]
[309976757,1704253836545,-166.2,0.0003322,2]
[309976758,1704253836554,-333.40103,0.00033298,2]
[309976759,1704253836564,-504.32225108,0.00033354,2]
[309976760,1704253836574,-333.40103,0.00033398,2]
[309976761,1704253836584,-333.40103,0.00033498,2]
[309976762,1704253836593,-342.0,0.000335,2]
[309976763,1704253836603,-2000.0,0.00033537,2]
[309976764,1704253836612,-200.0,0.00033537,2]
[309976765,1704253836621,-157.59,0.00033586,2]
[309976766,1704253836631,-333.40103,0.00033598,2]
[309976767,1704253836640,-175.73,0.000336,2]
[309976768,1704253836650,-166.2,0.00033625,2]
[309976769,1704253836659,-151.90251997,0.0003365,20]
[309976770,1704253836668,-155.0,0.0003365,2]
[309976771,1704253836679,-333.40103,0.00033698,2]
[309976772,1704253836689,-500.0,0.0003378,2]
[309976773,1704253836700,-500.0,0.0003378,2]
[309976774,1704253836709,-2195.08195405,0.00033789,6]
[309976775,1704253836718,-2195.08195405,0.0003379,6]
[309976776,1704253836728,-333.40103,0.00033798,2]
[309976777,1704253836737,-500.0,0.00033799,2]
[309976778,1704253836748,-572.77288438,0.00033799,2]
[309976779,1704253836758,-548.39617385,0.00033799,2]
[309976780,1704253836768,-500.0,0.00033799,2]
[309976781,1704253836777,-560.10819164,0.00033799,2]
[309976782,1704253836787,-566.24244043,0.00033799,2]
[309976783,1704253836800,-500.0,0.00033799,2]
[309976784,1704253836810,-546.00232367,0.00033799,2]
[309976785,1704253836819,-500.0,0.00033799,2]
[309976786,1704253836828,-500.0,0.00033799,2]
[309976787,1704253836837,-500.0,0.00033799,2]
[309976788,1704253836847,-538.02560028,0.00033799,2]
[309976789,1704253836856,-500.0,0.00033799,2]
[309976790,1704253836865,-500.0,0.00033799,2]
[309976791,1704253836874,-500.0,0.00033799,2]
[309976792,1704253836884,-578.6112644,0.00033799,2]
[309976793,1704253836894,-513.03810258,0.00033799,2]
[309976794,1704253836903,-647.39925339,0.00033799,2]
[309976795,1704253836912,-500.0,0.00033799,2]
[309976796,1704253836921,-523.49400829,0.00033799,2]
[309976797,1704253836931,-161.79297739,0.00033799,2]
[309976798,1704253836940,-500.0,0.00033799,2]
[309976799,1704253836949,-530.01073148,0.00033799,2]
[309976800,1704253836959,-507.20815809,0.00033799,2]
[309976801,1704253836968,-500.0,0.00033799,2]
[309976802,1704253836978,-500.0,0.00033799,2]
[309976803,1704253836988,-500.0,0.00033799,2]
[309976804,1704253836997,-551.45991526,0.00033799,2]
[309976805,1704253837007,-549.01127569,0.00033799,2]
[309976806,1704253837017,-573.78422841,0.00033799,2]
[309976807,1704253837027,-500.0,0.00033799,2]
[309976808,1704253837037,-641.32849604,0.00033799,2]
[309976809,1704253837047,-564.6193856,0.00033799,2]
[309976810,1704253837057,-631.78226149,0.00033799,2]
[309976811,1704253837066,-561.75831755,0.00033799,2]
[309976812,1704253837076,-575.48,0.00033799,2]
[309976813,1704253837085,-564.31490197,0.00033799,2]
[309976814,1704253837095,-535.79707842,0.00033799,2]
[309976815,1704253837105,-541.83758977,0.00033799,2]
[309976816,1704253837116,-500.0,0.00033799,2]
[309976817,1704253837126,-500.0,0.00033799,2]
[309976818,1704253837135,-500.0,0.00033799,2]
[309976819,1704253837145,-500.0,0.00033799,2]
[309976820,1704253837155,-500.0,0.00033799,2]
[309976821,1704253837164,-557.27214179,0.00033799,2]
[309976822,1704253837173,-500.0,0.00033799,2]
[309976823,1704253837183,-500.0,0.00033799,2]
[309976824,1704253837192,-500.0,0.00033799,2]
[309976825,1704253837202,-553.21411048,0.00033799,2]
[309976826,1704253837211,-500.0,0.00033799,2]
[309976827,1704253837221,-510.10732339,0.00033799,2]
[309976828,1704253837233,-549.56981701,0.00033799,2]
[309976829,1704253837242,-171.60810695,0.00033799,2]
[309976830,1704253837253,-500.0,0.00033799,2]
[309976831,1704253837262,-586.9820719,0.00033799,2]
[309976832,1704253837271,-540.59614227,0.00033799,2]
[309976833,1704253837282,-562.80403552,0.00033799,2]
[309976834,1704253837292,-537.60497447,0.00033799,2]
[309976835,1704253837301,-500.0,0.00033799,2]
[309976836,1704253837310,-500.0,0.00033799,2]
[309976837,1704253837320,-546.88961902,0.00033799,2]
[309976838,1704253837329,-500.0,0.00033799,2]
[309976839,1704253837338,-536.20971447,0.00033799,2]
[309976840,1704253837348,-420.59335724,0.00033799,2]
[309976841,1704253837357,-528.29849646,0.00033799,2]
[309976842,1704253837366,-500.0,0.00033799,2]
[309976843,1704253837376,-500.0,0.00033799,2]
[309976844,1704253837385,-519.06266025,0.00033799,2]
[309976845,1704253837394,-500.0,0.00033799,2]
[309976846,1704253837403,-516.23671908,0.00033799,2]
[309976847,1704253837413,-500.0,0.00033799,2]
[309976848,1704253837422,-561.36,0.00033799,2]
[309976849,1704253837431,-348.19913946,0.00033799,2]
[309976850,1704253837440,-508.26873225,0.00033799,2]
[309976851,1704253837450,-628.51544459,0.00033799,2]
[309976852,1704253837459,-551.70642286,0.00033799,2]
[309976853,1704253837469,-557.38,0.00033799,2]
[309976854,1704253837478,-500.0,0.00033799,2]
[309976855,1704253837488,-500.0,0.00033799,2]
[309976856,1704253837497,-572.9499801,0.00033799,2]
[309976857,1704253837506,-589.70916376,0.00033799,2]
[309976858,1704253837516,-577.89178145,0.00033799,2]
[309976859,1704253837526,-340.94477145,0.00033799,2]
[309976860,1704253837535,-500.0,0.00033799,2]
[309976861,1704253837545,-500.0,0.00033799,2]
[309976862,1704253837554,-538.6304826,0.00033799,2]
[309976863,1704253837564,-500.0,0.00033799,2]
[309976864,1704253837573,-579.78986661,0.00033799,2]
[309976865,1704253837582,-549.74733397,0.00033799,2]
[309976866,1704253837591,-259.81614849,0.00033799,2]
[309976867,1704253837602,-235.48254226,0.00033799,2]
[309976868,1704253837611,-529.36576523,0.00033799,2]
[309976869,1704253837620,-540.29048418,0.00033799,2]
[309976870,1704253837630,-595.63336746,0.00033799,2]
[309976871,1704253837639,-553.08907231,0.00033799,2]
[309976872,1704253837649,-561.30244045,0.00033799,2]
[309976873,1704253837658,-500.0,0.00033799,2]
[309976874,1704253837667,-548.89097503,0.00033799,2]
[309976875,1704253837676,-556.42266469,0.00033799,2]
[309976876,1704253837686,-201.42725365,0.00033799,2]
[309976877,1704253837697,-500.0,0.00033799,2]
[309976878,1704253837706,-500.0,0.00033799,2]
[309976879,1704253837715,-500.0,0.00033799,2]
[309976880,1704253837725,-500.0,0.00033799,2]
[309976881,1704253837734,-572.76066632,0.00033799,2]
[309976882,1704253837744,-302.48774348,0.00033799,2]
[309976883,1704253837754,-500.0,0.00033799,2]
[309976884,1704253837764,-500.0,0.00033799,2]
[309976885,1704253837774,-500.0,0.00033799,2]
[309976886,1704253837784,-500.0,0.00033799,2]
[309976887,1704253837794,-552.01853077,0.00033799,2]
[309976888,1704253837804,-242.12,0.00033799,2]
[309976889,1704253837814,-500.0,0.00033799,2]
[309976890,1704253837824,-500.0,0.00033799,2]
[309976891,1704253837833,-194.81,0.00033799,2]
[309976892,1704253837843,-549.81,0.00033799,2]
[309976893,1704253837853,-500.0,0.00033799,2]
[309976894,1704253837862,-597.05,0.00033799,2]
[309976895,1704253837871,-500.0,0.00033799,2]
[309976896,1704253837880,-500.0,0.00033799,2]
[309976897,1704253837890,-500.0,0.00033799,2]
[309976898,1704253837899,-573.75,0.00033799,2]
[309976899,1704253837908,-500.0,0.00033799,2]
[309976900,1704253837918,-639.61,0.00033799,2]
[309976901,1704253837928,-266.62454275,0.00033799,2]
[309976902,1704253837939,-371.84354921,0.00033799,2]
[309976903,1704253837948,-500.0,0.00033799,2]
[309976904,1704253837958,-565.93620381,0.00033799,2]
[309976905,1704253837967,-564.03177424,0.00033799,2]
[309976906,1704253837979,-500.0,0.00033799,2]
[309976907,1704253837989,-298.70102566,0.00033799,2]
[309976908,1704253837999,-939.37,0.00033799,2]
[309976909,1704253838008,-543.81250283,0.00033799,2]
[309976910,1704253838019,-584.14481462,0.00033799,2]
[309976911,1704253838028,-543.39931622,0.00033799,2]
[309976912,1704253838037,-500.0,0.00033799,2]
[309976913,1704253838204,-530.03,0.00033799,2]
[309976914,1704253838213,-547.36934215,0.00033799,2]
[309976915,1704253838222,-546.11286695,0.00033799,2]
[309976916,1704253838232,-584.31081869,0.00033799,2]
[309976917,1704253838241,-1109.94,0.00033799,2]
[309976918,1704253838250,-552.41659878,0.00033799,2]
[309976919,1704253838260,-500.0,0.00033799,2]
[309976920,1704253838269,-500.0,0.00033799,2]
[309976921,1704253838279,-563.34658615,0.00033799,2]
[309976922,1704253838289,-500.0,0.00033799,2]
[309976923,1704253838300,-500.0,0.00033799,2]
[309976924,1704253838310,-500.0,0.00033799,2]
[309976925,1704253838319,-500.0,0.00033799,2]
[309976926,1704253838329,-521.11,0.00033799,2]
[309976927,1704253838338,-500.0,0.00033799,2]
[309976928,1704253838349,-500.0,0.00033799,2]
[309976929,1704253838358,-545.47910336,0.00033799,2]
[309976930,1704253838367,-500.0,0.00033799,2]
[309976931,1704253838376,-500.0,0.00033799,2]
[309976932,1704253838385,-509.29,0.00033799,2]
[309976933,1704253838394,-584.33847153,0.00033799,2]
[309976934,1704253838404,-522.71799598,0.00033799,2]
[309976935,1704253838414,-500.0,0.00033799,2]
[309976936,1704253838425,-500.0,0.00033799,2]
[309976937,1704253838435,-526.61789997,0.00033799,2]
[309976938,1704253838444,-500.0,0.00033799,2]
[309976939,1704253838454,-571.82247214,0.00033799,2]
[309976940,1704253838463,-615.3,0.00033799,2]
[309976941,1704253838472,-500.0,0.00033799,2]
[309976942,1704253838482,-569.41539056,0.00033799,2]
[309976943,1704253838491,-492.75344291,0.00033799,2]
[309976944,1704253838500,-1664.45,0.00033799,2]
[309976945,1704253838509,-500.0,0.00033799,2]
[309976946,1704253838519,-500.0,0.00033799,2]
[309976947,1704253838529,-500.0,0.00033799,2]
[309976948,1704253838538,-513.12801259,0.00033799,2]
[309976949,1704253838547,-554.05523322,0.00033799,2]
[309976950,1704253838556,-2000.47,0.00033799,2]
[309976951,1704253838566,-525.36811024,0.00033799,2]
[309976953,1704253838575,-500.0,0.00033799,2]
[309976955,1704253838584,-500.0,0.00033799,2]
[309976957,1704253838594,-1505.72,0.00033799,2]
[309976959,1704253838603,-500.0,0.00033799,2]
[309976961,1704253838612,-577.85,0.00033799,2]
[309976963,1704253838622,-559.4174449,0.00033799,2]
[309976965,1704253838631,-547.31530029,0.00033799,2]
[309976967,1704253838641,-500.0,0.00033799,2]
[309976969,1704253838650,-565.80846097,0.00033799,2]
[309976971,1704253838659,-500.0,0.00033799,2]
[309976973,1704253838668,-500.0,0.00033799,2]
[309976976,1704253838676,-500.0,0.00033799,2]
[309976979,1704253838686,-500.0,0.00033799,2]
[309976982,1704253838695,-607.72,0.00033799,2]
[309976984,1704253838704,-395.80892496,0.00033799,2]
[309976986,1704253838713,-500.0,0.00033799,2]
[309976988,1704253838722,-557.37811825,0.00033799,2]
[309976990,1704253838732,-500.0,0.00033799,2]
[309976992,1704253838741,-500.0,0.00033799,2]
[309976994,1704253838750,-500.0,0.00033799,4]
[309976996,1704253838760,-531.62001003,0.00033799,2]
[309976998,1704253838769,-556.19768651,0.00033799,2]
[309977000,1704253838779,-500.0,0.00033799,2]
[309977002,1704253838789,-432.25415734,0.00033799,2]
[309977004,1704253838799,-535.52627634,0.00033799,2]
[309977006,1704253838809,-539.09186143,0.00033799,2]
[309977008,1704253838820,-514.8410638,0.00033799,2]
[309977010,1704253838829,-196.1746,0.000338,2]
[309977012,1704253838838,-16736.7077,0.000338,2]
[309977014,1704253838848,-100000.0,0.000338,2]
[309977016,1704253838857,-8000.73,0.000338,2]
[309977018,1704253838867,-152.0,0.00033804,3]
[309977020,1704253838876,-211.43,0.0003385,2]
[309977022,1704253838886,-1528.51,0.00033855,2]
[309977024,1704253838895,-2000.0,0.00033872,2]
[309977026,1704253838905,-200.0,0.00033872,2]
[309977028,1704253838915,-333.40103,0.00033898,2]
[309977030,1704253838924,-1102.19,0.00033898,2]
[309977032,1704253838935,-500.0,0.00033898,2]
[309977034,1704253838944,-500.0,0.00033898,2]
[309977037,1704253838954,-500.0,0.00033898,2]
[309977039,1704253838964,-500.0,0.00033898,2]
[309977041,1704253838974,-537.65769315,0.00033898,2]
[309977043,1704253838983,-187.66,0.00033898,2]
[309977045,1704253838993,-588.0,0.00033899,2]
[309977047,1704253839002,-500.0,0.00033899,2]
[309977049,1704253839013,-500.0,0.00033899,2]
[309977051,1704253839022,-888.14,0.00033899,2]
[309977053,1704253839031,-86516.03242405,0.000339,2]
[309977055,1704253839040,-26407.3111,0.000339,2]
[309977057,1704253839050,-500.0,0.000339,2]
[309977059,1704253839059,-200.0,0.000339,12]
[309977061,1704253839069,-333.40103,0.00033998,2]
[309977063,1704253839078,-500.0,0.00033999,2]
[309977065,1704253839088,-500.0,0.00033999,2]
[309977067,1704253839097,-500.0,0.00033999,2]
[309977069,1704253839107,-500.0,0.00033999,2]
[309977071,1704253839116,-157.39129465,0.00033999,2]
[309977073,1704253839125,-176.28362032,0.00033999,2]
[309977074,1704253839135,-205.71096416,0.00033999,2]
[309977076,1704253839144,-500.0,0.00033999,2]
[309977077,1704253839154,-393.54950361,0.00033999,2]
[309977078,1704253839719,-732.89,0.00025,2]
[309977079,1704253839729,-155.0,0.0003,2]
[309977080,1704253839738,-151.53772959,0.000329,2]
[309977081,1704253839754,-371.51227041,0.000329,2]
[309977082,1704253839767,-109.26699034,0.00033999,2]
[309977083,1704253839778,-500.0,0.00033999,2]
[309977084,1704253839790,-330.54,0.00033999,2]
[309977085,1704253839802,-48.62982954,0.00033999,2]
[309977086,1704253839834,-1951.84017046,0.00033999,2]
[309977087,1704253839843,-248.58670596,0.00033999,2]
[309977088,1704253839852,-184.52838782,0.00033999,4]
[309977089,1704253839863,-390.68713641,0.00033999,4]
[309977090,1704253839873,-2697.71553036,0.00034,2]
[309977091,1704253839886,-3765.21873708,0.00034,2]
[309977092,1704253839895,-1000.0,0.00034,4]
[309977093,1704253839906,-300.0,0.00034,35]